fUST/lending_fUST_20241127
["ID","MTS","AMOUNT","RATE_DAILY","PERIOD"]
[343466267,1732642241508,-210.647312,0.0002977,7]
[343466269,1732642241517,-367.337592,0.0002977,7]
[343466271,1732642241527,-367.337592,0.0002977,7]
[343466272,1732642241536,-367.337592,0.0002977,7]
[343466274,1732642241546,-672.754165,0.0002977,7]
[343466276,1732642241555,-672.754165,0.0002977,7]
[343466278,1732642241564,-672.754165,0.0002977,7]
[343466280,1732642241578,-672.754165,0.0002977,7]
[343466281,1732642241588,-367.337592,0.0002977,7]
[343466283,1732642241598,-367.337592,0.0002977,7]
[343466285,1732642241608,-367.337602,0.0002977,7]
[343466287,1732642241617,-672.754165,0.0002977,7]
[343466289,1732642241627,-672.754165,0.0002977,7]
[343466290,1732642241636,-672.754165,0.0002977,7]
[343466292,1732642241645,-672.754174,0.0002977,7]
[343466294,1732642241654,-151.0,0.0002977,7]
[343466296,1732642241663,-151.0,0.0002977,7]
[343466297,1732642241672,-207.172544,0.0002977,7]
[343466299,1732642241681,-645.530864,0.00029772,7]
[343466301,1732642241691,-645.530864,0.00029772,7]
[343466303,1732642241700,-645.530864,0.00029772,7]
[343466305,1732642241710,-645.530864,0.00029772,7]
[343466306,1732642241719,-645.530864,0.00029772,7]
[343466308,1732642241728,-645.530863,0.00029772,7]
[343466310,1732642241738,-151.0,0.00029772,7]
[343466312,1732642241747,-151.0,0.00029772,7]
[343466313,1732642241756,-151.0,0.00029772,7]
[343466315,1732642241768,-487.084408,0.00029772,7]
[343466317,1732642241778,-487.084408,0.00029772,7]
[343466319,1732642241787,-487.084408,0.00029772,7]
[343466321,1732642241796,-487.084408,0.00029772,7]
[343466323,1732642241806,-487.084408,0.00029772,7]
[343466325,1732642241815,-487.084418,0.00029772,7]
[343466326,1732642241828,-1560.31573204,0.00029772,2]
[343466328,1732642241837,-1560.31573204,0.00029772,2]
[343466330,1732642241846,-65595.26734842,0.00029772,10]
[343466337,1732642241920,-267.47419228,0.00027397,3]
[343466476,1732642243496,-232.52580772,0.00027397,3]
[343466478,1732642243506,-151.0,0.00029625,2]
[343466480,1732642243517,-99.74206596,0.00029772,10]
[343466484,1732642243556,-361.95984905,0.00029772,10]
[343466703,1732642246068,-500.0,0.00029738,7]
[343466705,1732642246078,-383.71,0.00029762,3]
[343466707,1732642246088,-7996.29,0.00029772,10]
[343466717,1732642246185,-419.52770081,0.00029772,10]
[343466915,1732642331682,167.147489,0.00013973,2]
[343466917,1732643032183,166.833457,0.00013973,2]
[343466918,1732643225103,-302.75782099,0.00025,2]
[343466919,1732643225126,-302.75782099,0.00025,2]
[343466920,1732643225150,-300.0,0.00025085,2]
[343466921,1732643225172,-300.0,0.00025085,2]
[343466922,1732643225194,-6327.9776015,0.00025086,2]
[343466923,1732643246120,-153.54672734,0.00024987,2]
[343466924,1732643246144,-4160.0223985,0.00025086,2]
[343466925,1732643246167,-352.23352841,0.00025087,2]
[343466939,1732643432364,-302.78807257,0.00025,2]
[343466940,1732643432375,-300.0,0.00025086,2]
[343466941,1732643432384,-300.0,0.00025086,2]
[343466942,1732643432394,-6071.53083849,0.00025087,2]
[343466977,1732643438407,-474.01881045,0.00025087,2]
[343466979,1732643438424,-777.15283752,0.00025087,2]
[343466981,1732643438437,-17225.06398513,0.00025087,2]
[343466983,1732643438447,-302.78807257,0.0002525,2]
[343466985,1732643438459,-756.842642,0.00025342,2]
[343466987,1732643438468,-376.41407,0.00025389,2]
[343466989,1732643438479,-302.78807257,0.000255,2]
[343466991,1732643438488,-1091.2639957,0.00025676,2]
[343466993,1732643438500,-302.78807257,0.0002575,2]
[343466995,1732643438510,-157.676933,0.00025833,2]
[343466997,1732643438522,-5845.8205737,0.00025846,2]
[343466999,1732643438534,-952.5367578,0.00025905,4]
[343467001,1732643438544,-969.7112832,0.0002595,2]
[343467003,1732643438553,-304.00874798,0.00026,2]
[343467005,1732643438563,-376.41407,0.00026074,2]
[343467007,1732643438572,-1089.45547124,0.00026159,2]
[343467009,1732643438582,-3947.2185686,0.00026169,2]
[343467011,1732643438591,-379.0968005,0.00026239,2]
[343467013,1732643438601,-376.41407,0.00026759,2]
[343467015,1732643438610,-420.0,0.00027174,2]
[343467017,1732643438620,-155.6350798,0.00027373,2]
[343467019,1732643438630,-976.94,0.00027387,10]
[343467021,1732643438639,-1077.25,0.00027387,10]
[343467023,1732643438649,-897.71,0.00027387,10]
[343467025,1732643438657,-239.509,0.00027391,16]
[343467027,1732643438671,-200.0,0.00027396,2]
[343467029,1732643438680,-500.0,0.00027396,2]
[343467031,1732643438690,-500.0,0.00027396,2]
[343467033,1732643438699,-187.66565863,0.00027396,2]
[343467035,1732643438709,-500.0,0.00027396,2]
[343467037,1732643438718,-500.0,0.00027396,2]
[343467039,1732643438729,-500.0,0.00027396,2]
[343467041,1732643438739,-500.0,0.00027396,2]
[343467043,1732643438749,-268.75999845,0.00027396,2]
[343467045,1732643438759,-450.44171484,0.00027396,2]
[343467047,1732643438768,-500.0,0.00027396,2]
[343467049,1732643438778,-361.93035901,0.00027396,2]
[343467051,1732643438787,-359.698256,0.00027397,7]
[343467053,1732643438797,-359.698256,0.00027397,7]
[343467055,1732643438807,-359.698256,0.00027397,7]
[343467057,1732643438816,-359.698256,0.00027397,7]
[343467059,1732643438826,-500.0,0.00027397,3]
[343467061,1732643438835,-500.0,0.00027397,3]
[343467063,1732643438844,-500.0,0.00027397,3]
[343467065,1732643438854,-510.88194317,0.00027397,3]
[343467067,1732643438864,-500.0,0.00027397,3]
[343467069,1732643438874,-500.0,0.00027397,3]
[343467071,1732643438884,-500.0,0.00027397,3]
[343467073,1732643438893,-500.0,0.00027397,3]
[343467075,1732643438903,-500.0,0.00027397,3]
[343467077,1732643438914,-503.78761712,0.00027397,3]
[343467079,1732643438924,-518.86,0.00027397,3]
[343467081,1732643438933,-512.06,0.00027397,3]
[343467083,1732643438942,-500.0,0.00027397,3]
[343467085,1732643438952,-437.19317213,0.00027397,3]
[343467087,1732643438961,-500.0,0.00027397,3]
[343467089,1732643438970,-500.0,0.00027397,3]
[343467091,1732643438980,-500.0,0.00027397,3]
[343467093,1732643438989,-500.0,0.00027397,3]
[343467095,1732643438999,-500.0,0.00027397,3]
[343467097,1732643439008,-507.43665622,0.00027397,2]
[343467099,1732643439018,-561.59380745,0.00027397,3]
[343467101,1732643439027,-573.88082742,0.00027397,3]
[343467103,1732643439036,-500.0,0.00027397,3]
[343467105,1732643439046,-645.57,0.00027397,3]
[343467107,1732643439055,-805.67,0.00027397,3]
[343467109,1732643439064,-805.67,0.00027397,3]
[343467121,1732643439182,-805.67,0.00027397,3]
[343467124,1732643439202,-805.67,0.00027397,3]
[343467126,1732643439212,-805.67,0.00027397,3]
[343467128,1732643439222,-805.67,0.00027397,3]
[343467130,1732643439232,-805.67,0.00027397,3]
[343467132,1732643439243,-805.67,0.00027397,3]
[343467134,1732643439252,-805.67,0.00027397,3]
[343467136,1732643439262,-500.60582469,0.00027397,3]
[343467138,1732643439272,-805.67,0.00027397,3]
[343467140,1732643439282,-805.67,0.00027397,3]
[343467142,1732643439292,-500.0,0.00027397,3]
[343467144,1732643439301,-805.67,0.00027397,3]
[343467146,1732643439311,-805.67,0.00027397,3]
[343467148,1732643439321,-502.4662883,0.00027397,3]
[343467150,1732643439331,-500.0,0.00027397,3]
[343467152,1732643439340,-500.0,0.00027397,3]
[343467154,1732643439350,-500.0,0.00027397,3]
[343467156,1732643439359,-500.0,0.00027397,3]
[343467158,1732643439370,-642.87,0.00027397,3]
[343467160,1732643439380,-506.9930822,0.00027397,3]
[343467162,1732643439389,-500.0,0.00027397,3]
[343467164,1732643439398,-500.0,0.00027397,3]
[343467166,1732643439408,-500.0,0.00027397,3]
[343467168,1732643439420,-436.7685091,0.00027397,3]
[343467170,1732643439430,-500.0,0.00027397,3]
[343467172,1732643439439,-500.0,0.00027397,3]
[343467174,1732643439451,-500.0,0.00027397,3]
[343467176,1732643439462,-500.0,0.00027397,3]
[343467178,1732643439472,-500.0,0.00027397,3]
[343467180,1732643439482,-504.51157849,0.00027397,3]
[343467181,1732643439492,-334.5754147,0.00027397,3]
[343467183,1732643439503,-500.0,0.00027397,3]
[343467185,1732643439513,-500.0,0.00027397,3]
[343467187,1732643439523,-502.97453698,0.00027397,3]
[343467189,1732643439533,-500.0,0.00027397,3]
[343467191,1732643439543,-500.0,0.00027397,3]
[343467193,1732643439552,-500.0,0.00027397,3]
[343467195,1732643439562,-500.0,0.00027397,3]
[343467197,1732643439571,-500.0,0.00027397,3]
[343467199,1732643439580,-500.0,0.00027397,3]
[343467201,1732643439590,-501.34776505,0.00027397,3]
[343467203,1732643439600,-635.74,0.00027397,3]
[343467205,1732643439609,-500.0,0.00027397,3]
[343467207,1732643439619,-500.0,0.00027397,3]
[343467209,1732643439629,-517.23391831,0.00027397,3]
[343467211,1732643439639,-616.79,0.00027397,10]
[343467212,1732643439648,-500.0,0.00027397,3]
[343467214,1732643439659,-500.0,0.00027397,3]
[343467216,1732643439673,-200.0,0.00027397,3]
[343467218,1732643439683,-500.0,0.00027397,3]
[343467220,1732643439694,-500.0,0.00027397,3]
[343467222,1732643439703,-500.0,0.00027397,3]
[343467224,1732643439713,-500.0,0.00027397,3]
[343467226,1732643439723,-500.0,0.00027397,3]
[343467228,1732643439733,-500.0,0.00027397,3]
[343467230,1732643439742,-500.0,0.00027397,3]
[343467232,1732643439752,-500.0,0.00027397,3]
[343467234,1732643439761,-500.0,0.00027397,3]
[343467236,1732643439771,-500.0,0.00027397,3]
[343467238,1732643439780,-500.0,0.00027397,3]
[343467240,1732643439790,-633.20490647,0.00027397,3]
[343467243,1732643439799,-500.0,0.00027397,3]
[343467245,1732643439809,-500.0,0.00027397,3]
[343467247,1732643439819,-26.0071309,0.00027397,3]
[343467249,1732643439833,-473.9928691,0.00027397,3]
[343467251,1732643439842,-646.56604854,0.00027397,3]
[343467253,1732643439851,-500.0,0.00027397,3]
[343467255,1732643439860,-500.0,0.00027397,3]
[343467257,1732643439870,-49.33592263,0.00027397,3]
[343467259,1732643439883,-511.16367232,0.00027397,3]
[343467261,1732643439892,-500.0,0.00027397,3]
[343467263,1732643439902,-500.0,0.00027397,3]
[343467265,1732643439912,-500.0,0.00027397,3]
[343467267,1732643439925,-500.0,0.00027397,3]
[343467269,1732643439935,-500.0,0.00027397,3]
[343467271,1732643439944,-500.0,0.00027397,3]
[343467273,1732643439953,-500.0,0.00027397,3]
[343467275,1732643439963,-648.76,0.00027397,3]
[343467277,1732643439973,-500.0,0.00027397,3]
[343467279,1732643439983,-228.51063151,0.00027397,3]
[343467281,1732643439994,-500.0,0.00027397,3]
[343467282,1732643440003,-500.0,0.00027397,3]
[343467284,1732643440012,-599.22547013,0.00027397,3]
[343467286,1732643440022,-500.0,0.00027397,3]
[343467288,1732643440031,-500.0,0.00027397,3]
[343467290,1732643440042,-627.24259559,0.00027397,3]
[343467292,1732643440051,-503.48643751,0.00027397,3]
[343467294,1732643440061,-504.13314776,0.00027397,3]
[343467296,1732643440070,-501.72179566,0.00027397,3]
[343467298,1732643440079,-504.92905195,0.00027397,3]
[343467300,1732643440090,-500.0,0.00027397,3]
[343467302,1732643440099,-500.0,0.00027397,3]
[343467304,1732643440109,-500.0,0.00027397,3]
[343467306,1732643440118,-500.0,0.00027397,3]
[343467308,1732643440128,-500.0,0.00027397,3]
[343467310,1732643440137,-500.0,0.00027397,3]
[343467312,1732643440147,-503.87236723,0.00027397,3]
[343467313,1732643440157,-511.03856161,0.00027397,3]
[343467316,1732643440170,-500.0,0.00027397,3]
[343467317,1732643440181,-500.0,0.00027397,3]
[343467319,1732643440190,-514.31470326,0.00027397,3]
[343467321,1732643440200,-500.0,0.00027397,3]
[343467323,1732643440209,-500.0,0.00027397,3]
[343467325,1732643440219,-500.0,0.00027397,3]
[343467327,1732643440228,-500.0,0.00027397,3]
[343467329,1732643440238,-586.55,0.00027397,3]
[343467331,1732643440247,-500.0,0.00027397,3]
[343467333,1732643440257,-500.0,0.00027397,3]
[343467335,1732643440267,-500.0,0.00027397,3]
[343467337,1732643440276,-553.46,0.00027397,3]
[343467339,1732643440285,-510.8335429,0.00027397,3]
[343467341,1732643440295,-500.0,0.00027397,3]
[343467343,1732643440305,-500.0,0.00027397,3]
[343467345,1732643440315,-500.0,0.00027397,3]
[343467347,1732643440324,-500.0,0.00027397,3]
[343467349,1732643440334,-500.0,0.00027397,3]
[343467351,1732643440343,-500.0,0.00027397,3]
[343467352,1732643440352,-500.0,0.00027397,3]
[343467355,1732643440363,-500.0,0.00027397,3]
[343467356,1732643440373,-500.0,0.00027397,3]
[343467358,1732643440382,-500.0,0.00027397,3]
[343467360,1732643440392,-546.28626098,0.00027397,3]
[343467362,1732643440401,-548.32549819,0.00027397,3]
[343467364,1732643440411,-500.0,0.00027397,3]
[343467366,1732643440424,-500.0,0.00027397,3]
[343467368,1732643440434,-500.0,0.00027397,3]
[343467370,1732643440443,-500.0,0.00027397,3]
[343467372,1732643440456,-516.51338388,0.00027397,3]
[343467374,1732643440465,-500.0,0.00027397,3]
[343467376,1732643440475,-500.0,0.00027397,3]
[343467378,1732643440485,-500.0,0.00027397,3]
[343467380,1732643440495,-969.6,0.00027397,3]
[343467382,1732643440504,-500.0,0.00027397,3]
[343467384,1732643440513,-969.6,0.00027397,3]
[343467385,1732643440523,-501.0605518,0.00027397,3]
[343467387,1732643440535,-500.0,0.00027397,3]
[343467389,1732643440544,-969.6,0.00027397,3]
[343467391,1732643440554,-969.6,0.00027397,3]
[343467393,1732643440563,-969.6,0.00027397,3]
[343467395,1732643440572,-969.6,0.00027397,3]
[343467397,1732643440582,-969.6,0.00027397,3]
[343467399,1732643440591,-500.0,0.00027397,3]
[343467401,1732643440601,-969.6,0.00027397,3]
[343467403,1732643440610,-535.49303925,0.00027397,3]
[343467405,1732643440619,-519.35696224,0.00027397,3]
[343467407,1732643440629,-500.0,0.00027397,3]
[343467409,1732643440639,-500.0,0.00027397,3]
[343467411,1732643440648,-505.98850184,0.00027397,3]
[343467413,1732643440658,-500.0,0.00027397,3]
[343467415,1732643440670,-500.0,0.00027397,3]
[343467417,1732643440685,-500.0,0.00027397,3]
[343467418,1732643440694,-500.0,0.00027397,3]
[343467420,1732643440704,-183.56319965,0.00027397,3]
[343467422,1732643440713,-500.0,0.00027397,3]
[343467424,1732643440722,-500.0,0.00027397,3]
[343467426,1732643440731,-500.0,0.00027397,3]
[343467428,1732643440740,-500.0,0.00027397,3]
[343467430,1732643440750,-500.0,0.00027397,3]
[343467432,1732643440759,-550.9055224,0.00027397,3]
[343467434,1732643440768,-500.0,0.00027397,3]
[343467436,1732643440777,-500.0,0.00027397,3]
[343467438,1732643440786,-368.80909147,0.00027397,3]
[343467440,1732643440795,-500.0,0.00027397,3]
[343467441,1732643440804,-518.73,0.00027397,3]
[343467443,1732643440813,-500.0,0.00027397,3]
[343467445,1732643440823,-203.90209121,0.00027397,3]
[343467447,1732643440832,-500.0,0.00027397,3]
[343467449,1732643440842,-500.0,0.00027397,3]
[343467451,1732643440851,-500.0,0.00027397,3]
[343467453,1732643440860,-500.0,0.00027397,3]
[343467455,1732643440869,-500.0,0.00027397,3]
[343467457,1732643440878,-500.0,0.00027397,3]
[343467459,1732643440888,-500.0,0.00027397,3]
[343467461,1732643440898,-500.0,0.00027397,3]
[343467463,1732643440907,-500.0,0.00027397,3]
[343467465,1732643440922,-500.0,0.00027397,3]
[343467467,1732643440932,-433.48,0.00027397,3]
[343467469,1732643440942,-500.0,0.00027397,3]
[343467471,1732643440951,-500.0,0.00027397,3]
[343467473,1732643440960,-241.8168679,0.00027533,5]
[343467475,1732643440970,-160.0653048,0.00027539,2]
[343467476,1732643440980,-420.0,0.00027595,2]
[343467478,1732643440990,-805.67,0.00028091,3]
[343467480,1732643441000,-359.698256,0.00028399,7]
[343467482,1732643441009,-359.698256,0.00028399,7]
[343467484,1732643441018,-805.67,0.00028399,3]
[343467486,1732643441027,-500.0,0.00028399,3]
[343467488,1732643441036,-197.0351502,0.00028399,3]
[343467490,1732643441045,-969.6,0.00028399,3]
[343467491,1732643441055,-969.6,0.00028399,3]
[343467493,1732643441064,-500.0,0.00028399,3]
[343467495,1732643441073,-500.0,0.00028399,3]
[343467497,1732643441082,-28232.08239221,0.000284,5]
[343467499,1732643441091,-805.67,0.00028468,3]
[343467501,1732643441100,-805.67,0.00028469,3]
[343467503,1732643441110,-805.67,0.0002847,3]
[343467505,1732643441119,-805.67,0.0002847,3]
[343467507,1732643441128,-805.67,0.0002847,3]
[343467509,1732643441137,-805.67,0.0002847,3]
[343467511,1732643441147,-805.67,0.0002847,3]
[343467513,1732643441157,-805.67,0.0002847,3]
[343467515,1732643441172,-805.78160247,0.0002847,3]
[343467517,1732643441180,-359.698256,0.00028471,7]
[343467519,1732643441189,-359.698256,0.00028471,7]
[343467520,1732643441199,-359.698256,0.00028472,7]
[343467522,1732643441208,-359.698256,0.00028472,7]
[343467524,1732643441218,-359.698256,0.00028472,7]
[343467526,1732643441227,-359.698256,0.00028472,7]
[343467528,1732643441237,-359.698256,0.00028472,7]
[343467530,1732643441246,-359.698256,0.00028472,7]
[343467532,1732643441256,-500.0,0.0002876,3]
[343467534,1732643441266,-500.0,0.0002876,3]
[343467536,1732643441276,-969.6,0.00029299,3]
[343467538,1732643441285,-152.59,0.000293,31]
[343467540,1732643441295,-152.59,0.000293,31]
[343467542,1732643441305,-152.59,0.000293,31]
[343467544,1732643441314,-152.59,0.000293,31]
[343467546,1732643441323,-152.59,0.000293,31]
[343467548,1732643441332,-152.59,0.000293,31]
[343467550,1732643441342,-152.59,0.000293,31]
[343467552,1732643441351,-152.59,0.000293,31]
[343467554,1732643441360,-152.59,0.000293,31]
[343467556,1732643441369,-152.59,0.000293,31]
[343467558,1732643441378,-152.59,0.000293,31]
[343467559,1732643441387,-152.59,0.000293,31]
[343467561,1732643441396,-4562.12495841,0.00029397,2]
[343467563,1732643441405,-359.698256,0.000294,7]
[343467565,1732643441417,-359.698256,0.000294,7]
[343467567,1732643441426,-587.0,0.00029436,2]
[343467569,1732643441435,-150.0,0.00029451,2]
[343467571,1732643441444,-531.0,0.00029451,2]
[343467573,1732643441456,-1103.0,0.00029451,2]
[343467575,1732643441465,-2378.0,0.00029451,2]
[343467577,1732643441474,-177.83227327,0.000295,2]
[343467579,1732643441484,-969.6,0.00029521,3]
[343467580,1732643441494,-511.42875569,0.00029521,3]
[343467582,1732643441504,-969.6,0.00029522,3]
[343467584,1732643441513,-351.1594064,0.00029522,3]
[343467588,1732643441537,-618.4405936,0.00029522,3]
[343467589,1732643441546,-969.6,0.00029522,3]
[343467591,1732643441555,-969.6,0.00029522,3]
[343467593,1732643441566,-969.6,0.00029522,3]
[343467595,1732643441575,-969.6,0.00029522,3]
[343467597,1732643441584,-969.6,0.00029522,3]
[343467599,1732643441593,-969.6,0.00029522,3]
[343467601,1732643441602,-969.6,0.00029522,3]
[343467603,1732643441612,-969.6,0.00029522,3]
[343467605,1732643441622,-969.6,0.00029522,3]
[343467607,1732643441632,-969.728054,0.00029522,3]
[343467609,1732643441641,-500.0,0.00029522,2]
[343467611,1732643441651,-380.11293611,0.00029522,2]
[343467613,1732643441661,-426.870825,0.00029522,2]
[343467615,1732643441672,-468.97510303,0.00029522,2]
[343467617,1732643441681,-247.77606453,0.00029522,2]
[343467784,1732643446374,-273.24225193,0.00026059,2]
[343467785,1732643446383,-355.428253,0.00029335,2]
[343467786,1732643446393,-748.09,0.00029513,10]
[343467787,1732643446403,-252.22393547,0.00029522,2]
[343467788,1732643446412,-348.92875804,0.00029522,2]
[343467789,1732643446424,-6517.52079859,0.00029523,2]
[343467790,1732643446435,-747.89774787,0.00029523,2]
[343467791,1732643446448,-2408.8,0.00029523,2]
[343467793,1732643721493,165.185632,0.00013973,2]
[343467799,1732644186010,2125.0,0.00023,30]
[343467800,1732644433148,-3540.83443331,0.00023925,2]
[343467801,1732644444151,-1459.16556669,0.00023925,2]
[343467802,1732644444174,-235.7522136,0.00024167,2]
[343467803,1732644444198,-195.08598739,0.00024311,2]
[343467804,1732644444351,-312.79067075,0.00024311,2]
[343467805,1732644444376,-380.0,0.00024658,2]
[343467806,1732644444400,-191.607,0.00025205,9]
[343467807,1732644444423,-2667.68448892,0.0002552,2]
[343467808,1732644444445,-300.0,0.00025616,2]
[343467809,1732644444469,-300.0,0.00025616,2]
[343467810,1732644444491,-452.61661996,0.00025616,2]
[343467813,1732644479990,165.045821,0.00013973,2]
[343467853,1732644632557,-378.421321,0.0002435,2]
[343467855,1732644632570,-24900.0,0.00024371,2]
[343467856,1732644632582,-844.3340769,0.00024594,2]
[343467857,1732644632594,-5000.0,0.00024703,2]
[343467858,1732644632606,-183.54615399,0.00024853,2]
[343467859,1732644632616,-235.7522136,0.00024953,2]
[343467860,1732644632626,-183.54615398,0.00025187,2]
[343467861,1732644632636,-300.0,0.00025519,2]
[343467862,1732644632646,-300.0,0.00025519,2]
[343467863,1732644632659,-48327.0,0.00025519,2]
[343467864,1732644632669,-2334.22392777,0.0002552,2]
[343467865,1732644632681,-183.54615398,0.0002552,2]
[343467866,1732644632692,-2334.22392775,0.00026114,2]
[343467867,1732644632703,-660.0,0.00026384,2]
[343467868,1732644632715,-2334.22392775,0.00026707,2]
[343467869,1732644632727,-2334.22392775,0.00027301,2]
[343467870,1732644632738,-420.0,0.00027631,2]
[343467871,1732644632748,-2334.22392775,0.00027895,2]
[343467872,1732644632763,-2334.22392775,0.00028489,2]
[343467873,1732644632774,-258.78314501,0.00028864,2]
[343467874,1732644632786,-751.98,0.0002899,3]
[343467875,1732644632797,-200.0,0.00029,2]
[343467876,1732644632809,-2334.22392775,0.00029082,2]
[343467877,1732644632819,-432.93,0.0002929,10]
[343467878,1732644632832,-152.6,0.000293,31]
[343467879,1732644632843,-152.6,0.000293,31]
[343467880,1732644632855,-152.6,0.000293,31]
[343467881,1732644632869,-152.6,0.000293,31]
[343467882,1732644632880,-152.6,0.000293,31]
[343467883,1732644632890,-152.6,0.000293,31]
[343467884,1732644632901,-152.6,0.000293,31]
[343467885,1732644632912,-152.6,0.000293,31]
[343467886,1732644632922,-152.6,0.000293,31]
[343467887,1732644632933,-152.6,0.000293,31]
[343467888,1732644633095,-235.8122537,0.00029329,2]
[343467889,1732644633112,-172.135064,0.00029335,2]
[343467890,1732644633123,-533.142381,0.00029335,2]
[343467891,1732644633134,-165.045821,0.00029349,2]
[343467892,1732644633144,-756.89455248,0.00029375,8]
[343467893,1732644633154,-500.0,0.00029399,2]
[343467894,1732644633164,-3000.0,0.000294,2]
[343467895,1732644633175,-7431.82443836,0.000294,7]
[343467896,1732644633186,-3000.0,0.0002941,2]
[343467897,1732644633196,-235.81225367,0.00029416,2]
[343467898,1732644633206,-3000.0,0.0002942,2]
[343467899,1732644633216,-500.0,0.00029422,2]
[343467900,1732644633226,-266.07905528,0.00029422,2]
[343467901,1732644633236,-298.8095775,0.00029422,2]
[343467902,1732644633246,-328.28257212,0.00029422,2]
[343467903,1732644633256,-444.25013063,0.00029422,2]
[343467904,1732644633266,-1155.29398441,0.00029423,2]
[343467905,1732644633276,-41865.448209,0.00029423,2]
[343467906,1732644633286,-222000.0,0.00029423,2]
[343467907,1732644633296,-3000.0,0.0002943,2]
[343467908,1732644633305,-3000.0,0.0002944,2]
[343467909,1732644633315,-3000.0,0.0002945,2]
[343467910,1732644633325,-150.0,0.00029451,2]
[343467911,1732644633335,-525.726,0.00029451,2]
[343467912,1732644633345,-2378.0,0.00029451,2]
[343467913,1732644633354,-1103.0,0.00029451,2]
[343467914,1732644633365,-3000.0,0.0002946,2]
[343467915,1732644633374,-3000.0,0.0002947,2]
[343467916,1732644633384,-3000.0,0.0002948,2]
[343467917,1732644633394,-4424.68119,0.0002949,2]
[343467918,1732644633403,-302.883087,0.000295,14]
[343467919,1732644633413,-235.81225367,0.00029503,2]
[343467920,1732644633423,-235.81225367,0.00029589,2]
[343467921,1732644633432,-2154.17,0.000296,2]
[343467922,1732644633443,-288.259,0.00029634,2]
[343467923,1732644633453,-666.0,0.00029665,2]
[343467924,1732644633463,-756.89455248,0.00029669,8]
[343467925,1732644633472,-2334.22392775,0.00029676,2]
[343467926,1732644633484,-235.81225367,0.00029676,2]
[343467927,1732644633494,-355.428253,0.00029702,2]
[343467928,1732644633506,-533.142381,0.00029702,2]
[343467929,1732644633516,-501.80531683,0.00029754,11]
[343467930,1732644633526,-500.0,0.00029754,11]
[343467931,1732644633536,-151.0,0.00029764,7]
[343467932,1732644633547,-151.0,0.00029764,7]
[343467933,1732644633558,-151.0,0.00029764,7]
[343467934,1732644633567,-151.0,0.00029764,7]
[343467935,1732644633577,-151.0,0.00029764,7]
[343467936,1732644633587,-151.0,0.00029764,7]
[343467937,1732644633596,-151.0,0.00029765,7]
[343467938,1732644633606,-151.0,0.00029765,7]
[343467939,1732644633615,-194.772442,0.00029765,7]
[343467940,1732644633624,-151.0,0.00029765,7]
[343467941,1732644633635,-151.0,0.00029765,7]
[343467942,1732644633644,-151.0,0.00029765,7]
[343467943,1732644633654,-151.0,0.00029765,7]
[343467944,1732644633664,-151.0,0.00029765,7]
[343467945,1732644633674,-151.0,0.00029765,7]
[343467946,1732644633684,-151.0,0.00029765,7]
[343467947,1732644633693,-151.0,0.00029765,7]
[343467948,1732644633703,-230.79302,0.00029765,7]
[343467949,1732644633713,-150.01,0.00029771,2]
[343467950,1732644633722,-2162.6774318,0.00029771,2]
[343467951,1732644633732,-150.32,0.00029772,10]